bitfinex-derivatives/quotes_SOLF0:USTF0_20260227
["timestamp","ask_amount","ask_price","bid_price","bid_amount"]
[1772166485056,7.32438907,88.036,87.994,7.25283356]
[1772166487871,7.32438907,88.036,87.995,10.2274]
[1772166488371,7.32438907,88.049,87.996,7.25283356]
[1772166489768,6.80520763,88.045,87.98,6.72283844]
[1772166490468,17.02740763,88.041,87.982,6.72283844]
[1772166491871,17.02740763,88.041,87.984,10.2287]
[1772166492075,17.02740763,88.041,87.985,6.72283844]
[1772166492275,10.2224,88.039,87.985,6.72283844]
[1772166492470,6.80520763,88.038,87.985,6.72283844]
[1772166493968,6.80520763,88.038,87.987,6.72283844]
[1772166494875,6.80520763,88.038,87.99,6.72283844]
[1772166495275,6.80520763,88.032,87.99,6.72283844]
[1772166496969,10.2233,88.031,87.99,6.72283844]
[1772166497366,6.80520763,88.03,87.99,6.72283844]
[1772166498173,6.80520763,88.044,87.99,6.72283844]
[1772166498579,6.80520763,88.042,87.99,6.72283844]
[1772166498877,6.80520763,88.042,87.992,10.2278]
[1772166499879,6.80520763,88.042,87.993,6.72283844]
[1772166500179,6.80520763,88.042,87.996,6.72283844]
[1772166501680,6.80520763,88.029,87.98,6.72283844]
[1772166501978,308.66287999,88.077,87.98,6.72283844]
[1772166501979,6.80520763,88.019,87.98,6.72283844]
[1772166505580,6.80520763,88.015,87.958,6.72283844]
[1772166505781,6.80520763,88.015,87.961,6.72283844]
[1772166505980,6.80520763,88.015,87.971,6.72283844]
[1772166507083,3.30222504,88.01,87.971,6.72283844]
[1772166509174,17.03120763,88.009,87.971,6.72283844]
[1772166509385,6.80520763,88.008,87.971,6.72283844]
[1772166509587,6.80520763,87.999,87.957,6.72283844]
[1772166510883,10.2275,87.996,87.957,6.72283844]
[1772166511180,6.80520763,87.999,87.957,6.72283844]
[1772166511781,3.30222504,88.01,87.957,6.72283844]
[1772166512087,3.30222504,88.01,87.899,34.15]
[1772166512088,3.30222504,88.01,87.961,6.72283844]
[1772166512887,3.30222504,88.01,87.963,6.72283844]
[1772166513993,17.03120763,88.008,87.963,6.72283844]
[1772166514186,6.80520763,88.007,87.963,6.72283844]
[1772166518696,6.80520763,88.007,87.965,6.72283844]
[1772166519893,6.80520763,88.007,87.967,10.2307]
[1772166520801,6.37188011,88.029,87.975,6.10144758]
[1772166521696,10.2246,88.021,87.975,6.10144758]
[1772166521899,6.37188011,88.02,87.975,6.10144758]
[1772166522902,10.2247,88.019,87.975,6.10144758]
[1772166525102,10.225,88.017,87.975,6.10144758]
[1772166525303,6.37188011,88.016,87.975,6.10144758]
[1772166530606,3.30222504,88.01,87.956,10.232]
[1772166530808,6.37188011,88.009,87.963,6.10144758]
[1772166531696,6.37188011,87.999,87.945,6.10144758]
[1772166532600,6.37188011,87.999,87.948,6.10144758]
[1772166532796,6.37188011,87.999,87.951,6.10144758]
[1772166534007,6.37188011,87.999,87.953,6.10144758]
[1772166536502,6.37188011,87.997,87.953,6.10144758]
[1772166536702,6.37188011,87.997,87.944,10.2334]
[1772166537198,6.37188011,87.997,87.945,6.10144758]
[1772166537404,6.37188011,87.995,87.95,3.30621841]
[1772166537605,6.37188011,87.995,87.951,6.10144758]
[1772166538204,6.37188011,88.009,87.951,6.10144758]
[1772166539012,6.37188011,88.005,87.956,16.33344758]
[1772166541411,6.37188011,87.999,87.956,6.10144758]
[1772166542201,6.37188011,87.989,87.942,6.10144758]
[1772166542808,6.37188011,87.979,87.942,6.10144758]
[1772166543414,6.37188011,87.979,87.93,9.40766599]
[1772166543913,6.37188011,87.979,87.93,19.64266599]
[1772166544108,6.37188011,87.979,87.931,6.10144758]
[1772166545118,6.37188011,87.979,87.934,10.2346]
[1772166545308,6.37188011,87.994,87.935,6.10100253]
[1772166545513,8.2823462,88.009,87.956,6.07691683]
[1772166545514,6.37188011,88.009,87.956,6.07691683]
[1772166546511,6.37188011,88.007,87.958,6.04790145]
[1772166546711,6.37188011,88.007,87.961,6.04790145]
[1772166547915,6.37188011,88.004,87.961,6.04790145]
[1772166549919,5.5872292,87.999,87.95,3.30621841]
[1772166551921,5.5872292,87.997,87.953,5.67403865]
[1772166554215,5.5872292,87.994,87.953,5.67403865]
[1772166555025,15.8151292,87.992,87.953,5.67403865]
[1772166555327,5.5872292,87.989,87.941,5.67403865]
[1772166555529,5.5872292,87.999,87.941,5.67403865]
[1772166556926,15.8143292,87.999,87.943,5.67403865]
[1772166557130,5.5872292,87.998,87.943,5.67403865]
[1772166557928,5.5872292,87.996,87.948,5.67403865]
[1772166559023,5.5872292,87.993,87.948,5.67403865]
[1772166559830,5.5872292,87.989,87.94,3.30621841]
[1772166560033,5.5872292,87.989,87.938,5.67403865]
[1772166560933,15.8160292,87.984,87.938,5.67403865]
[1772166562032,5.5872292,87.983,87.938,5.67403865]
[1772166562837,5.5872292,87.979,87.938,5.67403865]
[1772166564731,5.5872292,87.977,87.938,5.67403865]
[1772166564936,5.5872292,87.977,87.93,3.30621841]
[1772166565533,5.5872292,87.977,87.931,5.67403865]
[1772166565936,10.2297,87.976,87.931,5.67403865]
[1772166566334,5.5872292,87.975,87.931,5.67403865]
[1772166567041,5.5872292,87.975,87.933,5.67403865]
[1772166567434,3.30621841,88.0,87.951,5.67403865]
[1772166567637,3.30621841,87.98,87.934,5.67403865]
[1772166568033,5.5872292,87.989,87.934,5.67403865]
[1772166568938,15.8159292,87.985,87.937,5.67403865]
[1772166569636,5.5872292,87.984,87.937,5.67403865]
[1772166572135,5.5872292,87.975,87.923,5.67403865]
[1772166572338,5.5872292,87.969,87.911,5.67403865]
[1772166572841,5.5872292,87.959,87.912,5.67403865]
[1772166574041,10.2318,87.958,87.912,5.67403865]
[1772166574240,5.5872292,87.957,87.912,5.67403865]
[1772166576940,5.5872292,87.957,87.913,15.7553066]
[1772166577345,5.5872292,87.957,87.914,5.5184066]
[1772166579541,5.43839712,87.954,87.905,10.238]
[1772166579746,3.30621841,87.95,87.901,5.33601136]
[1772166579946,5.43400531,87.949,87.901,5.33601136]
[1772166580339,5.43400531,87.939,87.896,10.2389]
[1772166581044,5.43400531,87.939,87.898,10.2387]
[1772166582846,5.43400531,87.964,87.911,5.26028764]
[1772166584042,5.43400531,87.962,87.917,10.2365]
[1772166584945,5.43400531,87.962,87.918,5.26028764]
[1772166585248,5.43400531,87.962,87.919,10.2362]
[1772166592555,5.43400531,87.959,87.918,5.26028764]
[1772166593958,5.43400531,87.957,87.918,5.26028764]
[1772166596360,5.43400531,87.957,87.911,10.2372]
[1772166596960,5.43400531,87.957,87.911,15.49748764]
[1772166597359,5.43400531,87.957,87.912,5.26028764]
[1772166598055,5.43400531,87.957,87.914,5.26028764]
[1772166599860,5.43400531,87.957,87.914,15.49718764]
[1772166601557,5.43400531,87.957,87.919,5.25410971]
[1772166601758,5.43400531,87.957,87.921,5.25410971]
[1772166602358,5.43400531,87.955,87.902,10.2383]
[1772166602562,5.43400531,87.949,87.9,5.26028764]
[1772166603163,5.43400531,87.945,87.9,5.26028764]
[1772166604465,5.43400531,87.939,87.89,8.56890143]
[1772166604662,5.43400531,87.939,87.89,5.26028764]
[1772166605060,5.43400531,87.951,87.901,5.26028764]
[1772166605260,5.43400531,87.963,87.92,8.56890143]
[1772166605466,5.43400531,87.963,87.921,5.26028764]
[1772166606059,5.43400531,87.963,87.922,10.2359]
[1772166606263,5.43400531,87.963,87.923,5.26028764]
[1772166607057,5.43400531,87.963,87.925,5.26028764]
[1772166607661,5.43400531,87.963,87.913,5.26028764]
[1772166607861,3.30861379,87.96,87.913,5.26028764]
[1772166608065,5.43400531,87.959,87.913,5.26028764]
[1772166609966,5.08367472,87.956,87.913,5.26028764]
[1772166610768,5.08367472,87.956,87.92,3.30861379]
[1772166611271,5.08367472,87.956,87.915,4.92793488]
[1772166614473,5.08367472,87.956,87.91,3.30861379]
[1772166614474,5.08367472,87.956,87.916,15.16453488]
[1772166616071,5.08367472,87.956,87.916,4.92793488]
[1772166616266,5.08367472,87.956,87.91,3.30861379]
[1772166616470,5.08367472,87.956,87.904,4.92793488]
[1772166617272,3.30861379,87.96,87.904,4.92793488]
[1772166617273,5.08367472,87.946,87.904,4.92793488]
[1772166617468,5.08367472,87.939,87.882,4.92793488]
[1772166617664,5.08367472,87.931,87.883,10.2405]
[1772166617869,5.08367472,87.931,87.882,4.92793488]
[1772166617870,5.08367472,87.931,87.884,4.92793488]
[1772166618274,5.08367472,87.931,87.89,3.30861379]
[1772166618676,5.08367472,87.931,87.884,4.92793488]
[1772166618865,5.08367472,87.931,87.887,10.24]
[1772166619066,5.08367472,87.931,87.887,15.16793488]
[1772166619675,5.08367472,87.931,87.888,4.92793488]
[1772166620270,5.08367472,87.931,87.887,10.24]
[1772166620271,5.08367472,87.943,87.901,4.92793488]
[1772166620574,5.08367472,87.959,87.911,4.92793488]
[1772166620877,5.08367472,87.959,87.9,3.30861379]
[1772166621472,5.08367472,87.959,87.9,8.23654867]
[1772166621673,5.08367472,87.949,87.9,8.23654867]
[1772166621868,5.08367472,87.949,87.905,10.2379]
[1772166623776,5.08367472,87.949,87.9,8.23654867]
[1772166625973,5.08367472,87.949,87.901,10.2384]
[1772166626177,5.08367472,87.949,87.901,4.92793488]
[1772166626888,5.08367472,87.949,87.909,10.2375]
[1772166627579,5.08367472,87.949,87.909,15.16543488]
[1772166630276,5.08367472,87.949,87.909,4.92793488]
[1772166631081,5.08367472,87.949,87.888,20.63396948]
[1772166631274,5.08367472,87.927,87.884,4.92793488]
[1772166631477,5.08367472,87.938,87.901,4.92793488]
[1772166631681,5.08367472,87.949,87.901,4.92793488]
[1772166633087,10.2333,87.946,87.901,4.92793488]
[1772166633278,5.08367472,87.949,87.91,3.30861379]
[1772166633680,5.08367472,87.936,87.887,4.92793488]
[1772166634277,5.08367472,87.936,87.89,3.30861379]
[1772166634477,5.08367472,87.936,87.89,8.23654867]
[1772166635080,5.08367472,87.936,87.89,4.92793488]
[1772166636289,8.30847142,87.945,87.86,7.65749369]
[1772166636586,14.15540271,87.984,87.86,7.65749369]
[1772166636587,34.15,87.943,87.861,7.6356109]
[1772166636883,10.62888722,87.998,87.93,3.30861379]
[1772166637084,8.39871914,87.997,87.94,3.30861379]
[1772166637387,3.30861379,87.99,87.931,7.6356109]
[1772166638285,8.39535935,87.989,87.931,7.6356109]
[1772166638485,8.39535935,87.988,87.94,3.30861379]
[1772166638683,8.39535935,87.987,87.94,3.30861379]
[1772166638881,10.2319,87.957,87.897,7.51080735]
[1772166639083,3.30861379,87.97,87.911,7.51080735]
[1772166639587,10.2308,87.967,87.911,7.51080735]
[1772166639882,3.30861379,87.98,87.92,3.30861379]
[1772166640277,10.2307,87.968,87.92,3.30861379]
[1772166640887,10.2294,87.979,87.94,3.30861379]
[1772166641088,8.39560111,87.978,87.881,7.50504296]
[1772166641284,3.30861379,87.95,87.89,3.30861379]
[1772166641484,10.62888722,87.986,87.881,7.50504296]
[1772166641485,10.2325,87.953,87.9,3.30861379]
[1772166642188,10.2351,87.93,87.868,7.50460992]
[1772166642389,10.2351,87.93,87.88,3.30861379]
[1772166643490,10.2351,87.93,87.89,3.30861379]
[1772166644692,10.2351,87.93,87.88,3.30861379]
[1772166645085,10.2351,87.93,87.868,7.50460992]
[1772166645086,34.15,87.969,87.849,7.78647354]
[1772166645288,3.30861379,87.92,87.861,7.78647354]
[1772166645592,3.30861379,87.94,87.88,3.30861379]
[1772166645792,10.2363,87.919,87.88,3.30861379]
[1772166646194,3.30861379,87.93,87.87,3.30861379]
[1772166646489,5.11803311,87.949,87.87,3.30861379]
[1772166646690,8.39559738,87.948,87.89,3.30861379]
[1772166646882,10.2341,87.938,87.89,3.30861379]
[1772166647287,3.30861379,87.94,87.874,7.79232876]
[1772166647481,3.30861379,87.94,87.88,3.30861379]
[1772166647685,34.15,87.984,87.88,3.30861379]
[1772166647686,3.30861379,87.95,87.88,3.30861379]
[1772166647885,8.39117593,87.949,87.88,3.30861379]
[1772166648095,10.2339,87.94,87.88,3.30861379]
[1772166648588,10.2339,87.94,87.881,7.54565309]
[1772166648782,3.30861379,87.95,87.891,7.54565309]
[1772166649386,3.30861379,87.95,87.89,3.30861379]
[1772166649593,10.2329,87.949,87.89,3.30861379]
[1772166649894,3.30861379,87.94,87.881,7.54565309]
[1772166650093,3.30861379,87.95,87.89,3.30861379]
[1772166650390,3.30861379,87.94,87.866,7.50378389]
[1772166650588,3.30861379,87.94,87.881,7.50378389]
[1772166651395,3.30861379,87.95,87.891,7.50378389]
[1772166651596,10.62888722,87.983,87.901,7.50378389]
[1772166651788,3.30861379,87.97,87.91,3.30861379]
[1772166651991,3.30861379,87.95,87.897,7.50378389]
[1772166652196,10.2331,87.947,87.881,7.50378389]
[1772166652390,3.30861379,87.89,87.845,7.50378389]
[1772166652795,14.15540271,87.966,87.78,20.5051]
[1772166652796,10.2368,87.915,87.851,7.53759314]
[1772166653096,21.244556,87.982,87.797,33.90979981]
[1772166653097,3.30861379,87.93,87.871,7.53759314]
[1772166653293,10.2355,87.927,87.871,7.53759314]
[1772166654597,10.2367,87.916,87.86,3.30861379]
[1772166655094,10.2376,87.909,87.856,7.53759314]
[1772166655598,3.30861379,87.92,87.86,3.30861379]
[1772166655791,10.2368,87.915,87.86,3.30861379]
[1772166657295,10.2356,87.926,87.861,7.49079226]
[1772166657494,10.2356,87.926,87.798,33.90979981]
[1772166657495,3.30861379,87.87,87.806,7.49079226]
[1772166657696,3.30861379,87.84,87.769,7.49079226]
[1772166657895,3.30861379,87.82,87.744,7.49079226]
[1772166658095,3.30861379,87.75,87.681,7.49079226]
[1772166658293,3.30861379,87.74,87.69,3.30861379]
[1772166658491,2.84854417,87.764,87.71,3.30861379]
[1772166658699,2.84836401,87.783,87.74,3.30861379]
[1772166658893,2.84836401,87.782,87.74,3.30861379]
[1772166659088,3.30861379,87.8,87.74,3.30861379]
[1772166659294,8.89700444,87.8,87.703,7.48609684]
[1772166659690,8.89700444,87.78,87.703,7.48609684]
[1772166659997,8.89700444,87.76,87.685,7.48609684]
[1772166660195,8.89700444,87.74,87.661,7.48609684]
[1772166661091,10.2576,87.737,87.661,7.48609684]
[1772166661695,10.2558,87.752,87.661,7.48609684]
[1772166662203,10.2558,87.752,87.663,7.59150718]
[1772166663001,10.62888722,87.81,87.66,8.89700444]
[1772166663002,10.2541,87.767,87.681,7.58831891]
[1772166663202,34.15,87.779,87.681,7.58831891]
[1772166663506,10.2553,87.757,87.681,7.58831891]
[1772166664603,8.89700444,87.77,87.681,7.58831891]
[1772166666002,10.2541,87.767,87.681,7.58831891]
[1772166666204,8.89700444,87.77,87.681,7.58831891]
[1772166666901,8.89700444,87.77,87.687,7.64070761]
[1772166667999,10.2542,87.766,87.687,7.64070761]
[1772166670701,8.89700444,87.77,87.691,7.67717659]
[1772166671406,8.89700444,87.77,87.694,10.2626]
[1772166671607,8.89700444,87.77,87.695,7.67717659]
[1772166673108,10.2542,87.766,87.695,7.67717659]
[1772166675605,10.2557,87.754,87.695,7.67717659]
[1772166676806,10.2541,87.767,87.695,7.67717659]
[1772166677507,10.2554,87.756,87.695,7.67717659]
[1772166678812,10.254,87.768,87.695,7.67717659]
[1772166679011,8.89700444,87.79,87.695,7.67717659]
[1772166679714,8.89700444,87.79,87.709,7.71733365]
[1772166682014,10.2527,87.779,87.711,7.70692861]
[1772166682707,19.14850444,87.79,87.714,10.2602]
[1772166682909,19.14850444,87.79,87.715,7.69939443]
[1772166683712,10.2526,87.78,87.718,7.69939443]
[1772166686209,10.2513,87.791,87.718,7.69939443]
[1772166687615,8.89700444,87.83,87.74,7.72278377]
[1772166688006,10.2497,87.804,87.742,7.72278377]
[1772166688613,10.2497,87.804,87.746,7.7418602]
[1772166689010,10.2486,87.815,87.748,7.7418602]
[1772166689917,10.2486,87.815,87.751,7.7418602]
[1772166693620,10.2474,87.824,87.754,7.76639324]
[1772166694515,10.2474,87.824,87.764,7.76545561]
[1772166694718,8.89700444,87.83,87.75,7.76545561]
[1772166696020,10.2498,87.804,87.75,7.76545561]
[1772166697218,10.2487,87.814,87.754,7.75989825]
[1772166697417,2.84627761,87.828,87.754,7.75989825]
[1772166697618,2.84627761,87.827,87.754,7.75989825]
[1772166697818,2.84627761,87.826,87.754,7.75989825]
[1772166698018,2.84627761,87.825,87.754,7.75989825]
[1772166698220,2.84627761,87.824,87.754,7.75989825]
[1772166698417,2.84627761,87.823,87.754,7.75989825]
[1772166698615,2.84627761,87.822,87.754,7.75989825]
[1772166698822,8.89700444,87.82,87.711,7.75973585]
[1772166699023,2.84627761,87.819,87.711,7.75973585]
[1772166699223,2.84627761,87.818,87.711,7.75973585]
[1772166699424,2.84627761,87.817,87.711,7.75973585]
[1772166699620,8.89700444,87.82,87.736,7.75984105]
[1772166699621,2.84627761,87.816,87.736,7.75984105]
[1772166699820,2.84627761,87.815,87.736,7.75984105]
[1772166700024,2.84627761,87.814,87.736,7.75984105]
[1772166700226,2.84627761,87.813,87.736,7.75984105]
[1772166700419,2.84627761,87.812,87.736,7.75984105]
[1772166700726,2.84627761,87.811,87.736,7.75984105]
[1772166700921,10.2506,87.797,87.738,7.75557937]
[1772166701121,2.84627761,87.796,87.738,7.75557937]
[1772166701324,2.84627761,87.795,87.738,7.75557937]
[1772166701524,2.84627761,87.794,87.738,7.75557937]
[1772166701725,2.84627761,87.793,87.738,7.75557937]
[1772166701925,10.2514,87.79,87.738,7.75557937]
[1772166702126,2.84627761,87.789,87.738,7.75557937]
[1772166702427,2.84627761,87.788,87.738,7.75557937]
[1772166702625,10.2514,87.79,87.738,7.75557937]
[1772166702626,2.84627761,87.787,87.738,7.75557937]
[1772166702927,2.84627761,87.786,87.74,7.75441563]
[1772166703228,2.84627761,87.785,87.74,7.75441563]
[1772166703422,2.84627761,87.784,87.742,7.75441563]
[1772166703617,2.84627761,87.783,87.742,7.75441563]
[1772166703823,2.84627761,87.782,87.742,7.75441563]
[1772166704126,2.84627761,87.781,87.742,7.75441563]
[1772166704323,2.84627761,87.78,87.742,7.75441563]
[1772166704518,2.84627761,87.779,87.742,7.75441563]
[1772166704717,2.84627761,87.778,87.742,7.75441563]
[1772166704919,2.84627761,87.777,87.742,7.75441563]
[1772166705120,10.2514,87.79,87.742,7.75441563]
[1772166705320,10.2517,87.788,87.742,7.75441563]
[1772166705515,3.32175853,87.78,87.742,7.75441563]
[1772166705817,10.2529,87.778,87.723,7.75097491]
[1772166706124,3.32175853,87.77,87.723,7.75097491]
[1772166706319,2.84692684,87.769,87.723,7.75097491]
[1772166706518,2.84692684,87.768,87.723,7.75097491]
[1772166706718,2.84692684,87.767,87.723,7.75097491]
[1772166706920,3.32175853,87.75,87.672,7.72255867]
[1772166707121,2.84692684,87.749,87.701,7.72255867]
[1772166707327,2.84692684,87.748,87.711,7.72255867]
[1772166707523,3.32175853,87.77,87.711,7.72255867]
[1772166707827,3.32175853,87.75,87.701,7.72255867]
[1772166708029,2.84776183,87.749,87.701,7.72255867]
[1772166708323,2.84776183,87.748,87.711,7.72255867]
[1772166708528,9.02768425,87.769,87.711,7.72255867]
[1772166708728,11.87544446,87.768,87.718,7.72701858]
[1772166708933,11.87544446,87.767,87.721,7.72701858]
[1772166709119,2.84776021,87.766,87.721,7.72701858]
[1772166709426,10.2513,87.791,87.738,7.72701858]
[1772166709626,11.87594287,87.79,87.738,7.72701858]
[1772166709822,10.2513,87.791,87.738,7.72701858]
[1772166709823,10.2517,87.788,87.738,7.72701858]
[1772166710023,11.87594287,87.787,87.738,7.72701858]
[1772166710226,11.87594287,87.786,87.738,7.72701858]
[1772166710434,34.2,87.823,87.749,7.72701858]
[1772166710435,2.84731551,87.785,87.749,7.72701858]
[1772166710630,2.84731551,87.784,87.749,7.72701858]
[1772166710828,2.84731551,87.783,87.749,7.72701858]
[1772166711026,2.84731551,87.782,87.749,7.72701858]
[1772166711222,2.84731551,87.781,87.752,7.73741824]
[1772166711426,9.02993081,87.816,87.752,7.73741824]
[1772166711624,9.02993081,87.815,87.752,7.73741824]
[1772166711823,8.90030354,87.8,87.729,7.73741824]
[1772166712031,9.02993081,87.799,87.729,7.73741824]
[1772166712334,9.02993081,87.798,87.729,7.73741824]
[1772166712536,9.02993081,87.797,87.729,7.73741824]
[1772166712834,9.02993081,87.796,87.729,7.73741824]
[1772166713037,8.90030354,87.8,87.729,7.73741824]
[1772166713038,9.02993081,87.795,87.729,7.73741824]
[1772166713237,8.90030354,87.8,87.729,7.73741824]
[1772166713238,9.02993081,87.794,87.729,7.73741824]
[1772166713438,9.02993081,87.793,87.729,7.73741824]
[1772166713636,9.02993081,87.792,87.729,7.73741824]
[1772166713942,10.2517,87.788,87.729,7.73741824]
[1772166714138,9.02993081,87.787,87.729,7.73741824]
[1772166714340,9.02993081,87.786,87.729,7.73741824]
[1772166714639,10.2529,87.777,87.729,7.73741824]
[1772166715040,9.03813416,87.776,87.729,7.73741824]
[1772166715235,9.03813416,87.775,87.729,7.73741824]
[1772166715438,9.03813416,87.774,87.729,7.73741824]
[1772166715632,9.03813416,87.773,87.729,7.73741824]
[1772166715943,9.03813416,87.772,87.729,7.73741824]
[1772166716134,9.04040058,87.771,87.729,7.73741824]
[1772166716437,10.2529,87.777,87.729,7.73741824]
[1772166716630,8.90030354,87.8,87.729,7.73741824]
[1772166716631,9.04083533,87.776,87.729,7.73741824]
[1772166716832,9.04083533,87.775,87.729,7.73741824]
[1772166717036,9.04083533,87.774,87.729,7.73741824]
[1772166717237,8.90030354,87.8,87.729,7.73741824]
[1772166717238,10.2537,87.77,87.729,7.73741824]
[1772166720649,10.2547,87.762,87.729,7.73741824]
[1772166720946,10.62888722,87.787,87.714,7.75913399]
[1772166721145,9.01067573,87.786,87.714,7.75913399]
[1772166721346,9.01067573,87.785,87.714,7.75913399]
[1772166721545,9.01067573,87.784,87.714,7.75913399]
[1772166721745,9.01067573,87.783,87.714,7.75913399]
[1772166721946,10.2554,87.756,87.714,7.75913399]
[1772166723340,2.84790141,87.755,87.714,7.75913399]
[1772166723549,10.2554,87.756,87.714,7.75913399]
[1772166723754,2.84790141,87.755,87.714,7.75913399]
[1772166723950,2.84790141,87.754,87.714,7.75913399]
[1772166724152,2.84790141,87.753,87.714,7.75913399]
[1772166724352,2.84790141,87.752,87.714,7.75913399]
[1772166724654,2.84790141,87.751,87.714,7.75913399]
[1772166724853,2.84790141,87.75,87.714,7.75913399]
[1772166725057,10.2554,87.756,87.714,7.75913399]
[1772166725256,2.84815465,87.755,87.714,7.75913399]
[1772166725554,10.62888722,87.786,87.716,7.77143165]
[1772166725856,10.2542,87.766,87.716,7.77143165]
[1772166726055,2.84791962,87.765,87.716,7.77143165]
[1772166726256,2.84791962,87.764,87.716,7.77143165]
[1772166726453,2.84791962,87.763,87.716,7.77143165]
[1772166726653,2.84791962,87.762,87.716,7.77143165]
[1772166726854,2.84791962,87.761,87.716,7.77143165]
[1772166727052,2.84791962,87.76,87.716,7.77143165]
[1772166727351,2.84791962,87.759,87.716,7.77143165]
[1772166727556,2.84791962,87.758,87.716,7.77143165]
[1772166727757,2.84791962,87.757,87.716,7.77143165]
[1772166728052,10.62888722,87.786,87.718,7.76677591]
[1772166728257,11.86223881,87.785,87.718,7.76677591]
[1772166728457,11.86223881,87.784,87.718,7.76677591]
[1772166728655,11.86223881,87.783,87.718,7.76677591]
[1772166728856,11.86223881,87.782,87.718,7.76677591]
[1772166729048,11.86223881,87.781,87.718,7.76677591]
[1772166729250,11.86223881,87.78,87.718,7.76677591]
[1772166729556,11.86223881,87.779,87.718,7.76677591]
[1772166729755,8.90284627,87.79,87.722,7.72591201]
[1772166729756,10.2532,87.775,87.722,7.72591201]
[1772166729956,11.86223881,87.774,87.722,7.72591201]
[1772166730150,11.86223881,87.773,87.722,7.72591201]
[1772166730351,2.84792057,87.772,87.722,7.72591201]
[1772166730655,11.86204598,87.771,87.722,7.72591201]
[1772166730857,11.86204598,87.77,87.722,7.72591201]
[1772166731050,10.2557,87.754,87.722,7.72591201]
[1772166733258,3.32450846,87.76,87.722,1.201e-05]
[1772166733460,10.2566,87.746,87.722,1.201e-05]
[1772166733659,10.2566,87.746,87.691,10.2628]
[1772166734853,10.2574,87.739,87.69,3.32450846]
[1772166735054,3.32450846,87.74,87.68,3.32450846]
[1772166735361,3.32450846,87.74,87.681,3.84495636]
[1772166735551,0.04539559,87.739,87.691,3.84495636]
[1772166735755,2.84877751,87.738,87.691,3.84495636]
[1772166736057,10.2583,87.731,87.691,3.84495636]
[1772166736858,0.04539559,87.739,87.691,3.84495636]
[1772166737161,2.8487548,87.738,87.691,3.84495636]
[1772166737365,0.04539559,87.739,87.691,3.84495636]
[1772166737560,2.84877789,87.738,87.691,3.84495636]
[1772166737862,10.2578,87.735,87.691,3.84495636]
[1772166741062,0.04198875,87.736,87.691,3.84495636]
[1772166742361,2.84875614,87.735,87.691,3.84495636]
[1772166742555,0.04198875,87.736,87.691,3.84495636]
[1772166742757,2.84875614,87.735,87.691,3.84495636]
[1772166742959,0.04198875,87.736,87.691,3.84495636]
[1772166743356,2.84875499,87.735,87.691,3.84495636]
[1772166743566,0.04198875,87.736,87.691,3.84495636]
[1772166743863,2.84875499,87.735,87.691,3.84495636]
[1772166744070,0.04203032,87.729,87.677,3.846639]
[1772166745068,0.03862038,87.728,87.677,3.846639]
[1772166745469,3.32450846,87.74,87.681,3.84834396]
[1772166745668,2.8488044,87.739,87.681,3.84834396]
[1772166745870,3.32450846,87.75,87.691,3.84834396]
[1772166746069,2.84829855,87.749,87.691,3.84834396]
[1772166746368,2.84829855,87.748,87.691,3.84834396]
[1772166746569,3.32450846,87.76,87.705,3.83480755]
[1772166747169,9.00884234,87.786,87.731,3.83480755]
[1772166747472,0.06569321,87.789,87.731,3.83480755]
[1772166747675,10.31759321,87.786,87.733,3.83480755]
[1772166750374,10.2523,87.783,87.733,3.83480755]
[1772166752072,0.04185665,87.778,87.733,3.83480755]
[1772166753078,10.253,87.776,87.733,3.83480755]
[1772166755680,10.2538,87.77,87.733,3.83480755]
[1772166760483,0.03750435,87.778,87.74,3.32450846]
[1772166760682,0.03750435,87.778,87.73,3.32450846]
[1772166761181,0.03750435,87.778,87.73,7.17148276]
[1772166761382,0.03750435,87.778,87.731,3.8469743]
[1772166761877,10.2519,87.786,87.731,3.8469743]
[1772166762082,10.2519,87.786,87.741,3.8469743]
[1772166764697,10.2519,87.786,87.732,10.2581]
[1772166764698,10.2509,87.794,87.751,3.92302385]
[1772166764993,3.32450846,87.79,87.751,3.92302385]
[1772166765396,3.32450846,87.79,87.73,3.32450846]
[1772166765701,3.32450846,87.79,87.731,3.92302385]
[1772166765996,10.2521,87.785,87.731,3.92302385]
[1772166768700,3.32450846,87.79,87.731,3.92302385]
[1772166768701,10.2532,87.775,87.731,3.92302385]
[1772166771004,10.2521,87.784,87.741,3.94367161]
[1772166771202,10.62888722,87.821,87.751,3.94367161]
[1772166771407,34.2,87.836,87.761,3.94367161]
[1772166771408,12.34334762,87.82,87.761,3.94367161]
[1772166771605,10.2488,87.813,87.77,3.32450846]
[1772166771798,10.2488,87.813,87.771,3.94367161]
[1772166772710,3.32450846,87.81,87.771,3.94367161]
[1772166773801,3.32450846,87.81,87.754,3.91790812]
[1772166774007,3.32450846,87.81,87.701,20.5236]
[1772166774008,3.32450846,87.79,87.741,3.91790812]
[1772166774200,3.32450846,87.78,87.741,3.91790812]
[1772166774602,10.2515,87.789,87.741,3.91790812]
[1772166774901,3.32450846,87.78,87.741,3.91790812]
[1772166777401,3.32450846,87.79,87.741,3.91790812]
[1772166777604,3.32450846,87.79,87.742,3.91778439]